Cogmind - Beta 13 @@@ ROGUE MODE // 2024.05.12 @ 23:05:51 Player: SYPIAC Result: Destroyed by H-88 Terminator with KE Penetrator Performance ------------- Evolutions (8) 4000 Regions Visited (30) 6000 Robots Destroyed (510) 2550 Value Destroyed (22038) 22038 Prototype IDs (66) 1320 Alien Tech Used (1) 200 Bonus (17451) 17451 TOTAL SCORE: 53559 Bonus ------- Triggered High Security 1500 High Alert Combat Kills 9479 Follower Combat Kills 3518 Awakened Behemoth Slayer 1000 Network Hubs Disabled 200 Met Data Miner 300 Met Zhirov 300 Built Enhanced Grunts 300 A7 Reached Mainframe 300 Met R17 at Cetus 500 Met R17 at Research 2000 Scanned by Researcher 500 Friendly Fire -2446 Cogmind --------- Core Integrity 0/1450 Matter 290/300 Energy 80/265 System Corruption 24% Temperature Cool (0) Movement Core (150) Ox2 Location -2/Research Parts ------- > --- POWER (3) -------- Improved Ion Engine > --- PROPULSION (5) --- (None) > --- UTILITY (12) ----- (None) > --- WEAPON (3) ------- (None) > --- INVENTORY (5) ---- Ghost Barrier Transdimensional Reconstructor CR-A16's Behemoth Slayer Peak State ------------ > --- POWER ------------ Light Quantum Reactor Quantum-Particle Reactor > --- PROPULSION ------- Myomer Exoskeleton > --- UTILITY ---------- Armored Scrap Engine Advanced Cooling System Advanced Cooling System High-capacity Storage Unit Advanced Signal Interpreter Experimental Targeting Computer Precision Energy Filter Advanced Kinecellerator Advanced Weapon Cycler Heavy Regenerative Plating > --- WEAPON ----------- Hvy. Kinetic HMG Construct/C Great Maul > --- INVENTORY -------- Heavy Treads Myomer Leg Energy Well Advanced Energy Well Advanced Energy Well Improved Matter Compressor Experimental ECM Suite Graphene Brace Ghost Barrier Transdimensional Reconstructor Hypervelocity Railgun Hypervelocity Multirail Hypervelocity Mass Driver Neutron Missile Launcher CR-A16's Behemoth Slayer [Rating: 174] Favorites ----------- Power Constructs Engine Improved Ion Engine Power Core Reinforced Fission Core Reactor Constructs Propulsion Constructs Treads Improved Treads Leg Constructs Hover Unit Hover Unit Utility Armored Scrap Engine Device Armored Scrap Engine Storage Large Storage Unit Processor Advanced Signal Interpreter Hackware Advanced Hacking Suite Protection Centrium Medium Armor Plating Weapon Constructs Energy Gun Improved EM Shotgun Energy Cannon Advanced Beam Cannon Ballistic Gun Assault Rifle Ballistic Cannon Constructs Launcher Heavy Missile Launcher Special Weapon Remote Datajack Impact Weapon Great Maul Slashing Weapon Makeshift Sword Piercing Weapon CR-A16's Pointy Stick Build | -11 -10 -10 -9 -9 -9 -7 -7 -7 -7 -6 -6 -6 -6 -6 -6 -6 -5 -5 -5 -5 -5 -5 -4 -4 -4 -4 -3 -3 -3 -2 ------- Run | Yrd Mat Min Mat Sto Rec Fac Low Low Zio Pro Fac Was Fac Low Low Dat Pro Fac Ext Cet Arc Hub Fac Upp Upp Zhi Pro Res Tes Res Slots Evolved 16 | . . . 2 . . 4 . . . . 2 . . . . . . 2 . . . . 2 . . . . 2 . 2 Power 2 | . . . . . . . . . . . 1 . . . . . . . . . . . . . . . . 1 . . Propulsion 3 | . . . 1 . . 1 . . . . . . . . . . . 1 . . . . . . . . . . . . Utility 10 | . . . 1 . . 2 . . . . 1 . . . . . . 1 . . . . 2 . . . . 1 . 2 Weapon 1 | . . . . . . 1 . . . . . . . . . . . . . . . . . . . . . . . . Parts Attached 430 | 1 15 1 38 20 3 27 9 11 6 . 1 9 55 3 12 . 5 17 22 14 2 4 15 13 10 4 10 23 42 38 Power 13 | . 1 . 4 2 . . . . . . . 1 . . . . . . . . . . . . . . . 2 . 3 Engine 9 | . 1 . 4 2 . . . . . . . 1 . . . . . . . . . . . . . . . . . 1 Core 2 | . . . . . . . . . . . . . . . . . . . . . . . . . . . . 2 . . Reactor 2 | . . . . . . . . . . . . . . . . . . . . . . . . . . . . . . 2 Propulsion 22 | . 6 . 10 2 . . . . . . . . . . . . . . 1 . . . . . . . . . . 3 Treads 19 | . 6 . 10 2 . . . . . . . . . . . . . . . . . . . . . . . . . 1 Leg 2 | . . . . . . . . . . . . . . . . . . . . . . . . . . . . . . 2 Wheel . | . . . . . . . . . . . . . . . . . . . . . . . . . . . . . . . Hover 1 | . . . . . . . . . . . . . . . . . . . 1 . . . . . . . . . . . Flight . | . . . . . . . . . . . . . . . . . . . . . . . . . . . . . . . Utility 239 | . 2 1 8 5 2 15 2 4 2 . 1 . 36 3 9 . 3 12 14 9 2 2 10 12 8 3 8 15 29 22 Device 156 | . . . . 1 1 4 . 1 . . . . 24 3 6 . 1 11 12 7 2 2 8 8 7 2 6 10 28 12 Storage 16 | . 1 . 1 . . 2 . . . . . . 1 . . . . . . 1 . . 1 . 1 . 1 1 . 6 Processor 11 | . 1 . 1 1 1 1 . . 2 . . . . . . . . . . . . . . . . . 1 1 . 2 Hackware 1 | . . . . . . . . . . . . . . . . . . . . . . . . . . . . 1 . . Protection 55 | . . 1 6 3 . 8 2 3 . . 1 . 11 . 3 . 2 1 2 1 . . 1 4 . 1 . 2 1 2 Artifact . | . . . . . . . . . . . . . . . . . . . . . . . . . . . . . . . Weapon 156 | 1 6 . 16 11 1 12 7 7 4 . . 8 19 . 3 . 2 5 7 5 . 2 5 1 2 1 2 6 13 10 Energy Gun 24 | . . . 9 6 1 . . 1 . . . 1 2 . . . . 1 . 1 . . 1 . . . . . 1 . Energy Cannon 13 | . 2 . 2 2 . . . . . . . 1 . . 1 . 1 . 2 . . . 2 . . . . . . . Ballistic Gun 10 | 1 . . . 1 . . . . . . . . 1 . 1 . . 1 . 1 . . . . . . . . 2 2 Ballistic Cannon 12 | . 3 . 2 . . . . 1 . . . . 3 . . . . . . . . 1 . . . . . . 1 1 Launcher 25 | . . . 1 . . 2 4 2 1 . . 4 1 . . . . . 2 1 . . 1 . . . . 1 2 3 Special Weapon 6 | . . . . 1 . 1 . . . . . . 4 . . . . . . . . . . . . . . . . . Impact Weapon 17 | . 1 . 2 1 . 1 . . . . . . . . . . . . . . . . . . 1 . 1 3 4 3 Slashing Weapon 34 | . . . . . . 7 3 3 2 . . 2 8 . . . . . 3 2 . 1 1 . 1 . 1 . . . Piercing Weapon 15 | . . . . . . 1 . . 1 . . . . . 1 . 1 3 . . . . . 1 . 1 . 2 3 1 Special Melee Weapon . | . . . . . . . . . . . . . . . . . . . . . . . . . . . . . . . Unidentified Prototypes 38 | . . . 2 4 . . . . 2 . . 2 6 . . . . 1 . 5 . . 1 . . 2 . 1 9 3 Corrupted Parts 1 | . . . . . . 1 . . . . . . . . . . . . . . . . . . . . . . . . System Corruption 4 | . . . . . . 4 . . . . . . . . . . . . . . . . . . . . . . . . Parts Lost 33 | . . . 5 . . . . . . . . . 1 . 1 . . 1 . . . . 1 2 . . . . 1 21 Power 3 | . . . . . . . . . . . . . . . . . . . . . . . . . . . . . . 3 Propulsion 4 | . . . . . . . . . . . . . . . . . . . . . . . . . . . . . . 4 Utility 14 | . . . 1 . . . . . . . . . . . 1 . . 1 . . . . . 1 . . . . 1 9 Weapon 12 | . . . 4 . . . . . . . . . 1 . . . . . . . . . 1 1 . . . . . 5 Highest Loss Streak 19 | . . . 2 . . . . . . . . . 1 . 1 . . 1 . . . . 1 1 . . . . 1 19 To Critical Strikes . | . . . . . . . . . . . . . . . . . . . . . . . . . . . . . . . Average Slot Usage (%) 71 | . 98 100 99 99 79 60 61 61 60 61 60 62 59 59 59 54 59 56 57 57 58 58 62 58 61 63 63 62 60 58 Engine 5 | . 14 14 11 11 10 6 . 5 7 7 6 3 3 6 . . . . . . . . . . . . . . . . Reactor 1 | . . . . . . . . . . . . 5 2 . . . . 1 4 4 5 5 5 5 5 5 5 4 4 3 Treads 12 | . 27 28 33 33 24 4 . . . . . . 2 6 6 6 6 2 1 5 5 5 1 5 5 5 5 4 4 . Device 11 | . . . . 1 4 9 7 7 7 7 6 6 10 19 19 20 15 16 16 16 17 17 25 25 26 26 22 20 22 23 Storage 7 | . 14 14 11 11 6 5 7 7 7 7 6 6 6 6 6 6 6 5 5 5 5 5 5 5 5 5 5 4 4 5 Processor 9 | . 12 3 10 11 13 7 7 7 8 15 13 13 12 6 6 6 6 5 5 5 5 5 5 5 5 5 8 11 4 8 Protection 5 | . . 10 10 9 3 6 6 6 5 . 6 6 2 . . . 3 5 5 5 5 5 5 6 5 5 5 3 4 3 Energy Gun 3 | . 3 . 14 15 6 . . . . . . . . . . . . . . . . . . . . . . . . . Energy Cannon 3 | . 11 14 4 5 7 . . 2 5 7 6 6 1 . . 1 4 . 4 2 . 2 4 4 3 . . . . . Ballistic Cannon 3 | . 4 14 2 . . 6 7 4 1 . . . 5 12 6 6 6 4 1 3 4 2 3 1 1 5 5 4 3 4 Slashing Weapon 1 | . . . . . . 4 6 5 6 7 6 1 5 . . . . . 2 4 5 5 2 . 1 2 . . . . Naked Turns 8 | . . . . . . . . . . . . . . . . . . . . . . . . . . . . . . 8 Heaviest Build 154 | 14 31 34 62 64 63 44 44 44 33 23 30 37 71 63 67 64 75 87 89 89 81 85 100 99 96 89 111 140 154 149 Greatest Support 277 | 20 40 40 69 69 74 70 70 70 77 77 77 93 96 123 123 123 150 150 104 259 259 259 259 248 277 277 277 277 277 277 Greatest Overweight (x) 1 | . . . 1 . . 1 . . . . . . 1 . . . . . . . . . . . . . . . . . Average Overweight (x) . | . . . . . . . . . . . . . . . . . . . . . . . . . . . . . . . Largest Inventory Capacity 20 | 8 15 15 20 20 20 8 8 8 8 8 8 8 15 15 15 15 15 15 15 15 15 15 15 15 15 15 20 20 20 20 Average Capacity 15 | 8 14 15 19 20 13 7 8 8 8 8 8 8 13 15 15 15 15 15 15 15 15 15 15 15 15 15 15 20 20 19 Most Carried 20 | 6 15 14 20 20 20 8 8 8 8 8 7 8 13 10 12 12 14 15 15 15 15 15 15 15 12 13 15 20 20 19 Average Carried 12 | 6 13 13 18 19 6 6 7 7 6 8 7 7 10 10 10 11 10 14 14 14 15 15 13 14 10 12 13 17 19 15 Final Capacity 20 | 8 15 15 20 20 5 8 8 8 8 8 8 8 15 15 15 15 15 15 15 15 15 15 15 15 15 15 20 20 20 5 Final Carried 20 | 6 14 13 20 20 5 8 8 6 8 8 7 8 10 10 11 12 13 15 15 15 15 15 15 11 11 13 15 17 17 3 Scrap Engine Consumption 314 | . . . . . 41 22 4 8 6 1 2 11 53 5 2 . 3 10 20 23 5 7 12 16 1 3 5 14 15 25 Constructs Created 4 | . . . . . 3 . . . . . . . . 1 . . . . . . . . . . . . . . . . Constructs Modified 140 | . . . . . 15 11 2 4 3 . 1 5 26 5 1 . 2 6 7 11 2 1 7 8 3 . 1 4 3 12 Class Distribution -------------------- 58% | Construct 26% | Mutant 5% | Commander-Construct 4% | Scavenger-Mutant 3% | Scavenger-Construct Dominant Class ---------------- Mutant | -10/Materials Mutant | -10/Mines Mutant | -9/Materials Mutant | -9/Storage Mutant | -9/Recycling Construct | -7/Factory Construct | -7/Lower Caves Construct | -7/Lower Caves Construct | -7/Zion Construct | -6/Proximity Caves Construct | -6/Factory Construct | -6/Waste Construct | -6/Factory Construct | -6/Lower Caves Construct | -6/Lower Caves Construct | -6/Data Miner Construct | -5/Proximity Caves Construct | -5/Factory Construct | -5/Extension Commander-Construct | -5/Cetus Commander-Construct | -5/Archives Commander-Construct | -5/Hub_04(d) Construct | -4/Factory Construct | -4/Upper Caves Construct | -4/Upper Caves Scavenger-Construct | -4/Zhirov Construct | -3/Proximity Caves Commander-Construct | -3/Research Construct | -3/Testing Construct | -2/Research Resources | -11 -10 -10 -9 -9 -9 -7 -7 -7 -7 -6 -6 -6 -6 -6 -6 -6 -5 -5 -5 -5 -5 -5 -4 -4 -4 -4 -3 -3 -3 -2 ----------- Run | Yrd Mat Min Mat Sto Rec Fac Low Low Zio Pro Fac Was Fac Low Low Dat Pro Fac Ext Cet Arc Hub Fac Upp Upp Zhi Pro Res Tes Res Matter Collected 10364 | 229 284 32 532 179 292 496 190 140 43 17 . 114 763 75 293 . 196 336 788 342 112 307 825 292 296 58 391 752 936 1054 Remotely . | . . . . . . . . . . . . . . . . . . . . . . . . . . . . . . . Salvage Created 27357 | 89 731 21 2073 923 1059 1002 408 187 . . . 757 3192 416 445 . 135 508 1601 260 253 696 1246 526 894 451 1092 985 2318 5089 Parts 1320 | 4 59 6 139 68 48 50 23 11 . . . 13 143 17 21 . 11 26 72 13 8 46 63 26 31 2 50 42 106 222 Haulers Intercepted 19 | . 2 . 6 1 . 1 . . . . . . 6 . . . . . 2 . . . 1 . . . . . . . Recyclers Shooed 12 | 1 . . . 2 2 . . . . . . . 4 . . . . . . . . . 2 . . . . . . 1 Parts Field Recycled . | . . . . . . . . . . . . . . . . . . . . . . . . . . . . . . . Retrieved Matter . | . . . . . . . . . . . . . . . . . . . . . . . . . . . . . . . Parts Self-Destructed 178 | . . . . . . . 18 14 . 9 . . . 12 22 . 7 . . . . . . 22 24 1 49 . . . Prevented 8 | . . . . . . . . 1 . . . . . . . . 2 . . . . . . 5 . . . . . . Kills | -11 -10 -10 -9 -9 -9 -7 -7 -7 -7 -6 -6 -6 -6 -6 -6 -6 -5 -5 -5 -5 -5 -5 -4 -4 -4 -4 -3 -3 -3 -2 ------- Run | Yrd Mat Min Mat Sto Rec Fac Low Low Zio Pro Fac Was Fac Low Low Dat Pro Fac Ext Cet Arc Hub Fac Upp Upp Zhi Pro Res Tes Res Combat Hostiles Destroyed 383 | . 16 2 33 17 12 16 15 6 . . . 2 37 5 11 . 2 7 22 6 3 9 16 7 11 . 13 9 33 73 Melee 1 | . . . . . . 1 . . . . . . . . . . . . . . . . . . . . . . . . Guns 53 | . 11 . 18 14 7 . . . . . . . . . . . . . . . . . . . . . . . . 3 Cannons 251 | . 5 2 8 2 3 7 6 4 . . . 2 35 5 11 . 2 7 16 3 3 4 8 6 11 . 13 7 25 56 AOE 65 | . . . 6 1 1 4 9 2 . . . . 2 . . . . . 6 3 . 5 6 . . . . . 6 14 Classes Destroyed 30 | 2 5 . 5 . 3 2 1 . . . . 1 . 1 . . 2 . . . . . . . 1 . . . 1 6 Worker 23 | . 1 1 2 . . . . . . . . . 6 . . . . . 2 . . 5 2 . . . . 2 . 2 Builder 19 | . . . 3 1 1 . . . . . . . 1 . . . . . 1 . . 3 . . . . 2 1 3 3 Tunneler 8 | 1 2 . 1 . 1 . . . . . . . 2 . . . . . . . . . 1 . . . . . . . Hauler 19 | . 2 . 6 1 . 1 . . . . . . 6 . . . . . 2 . . . 1 . . . . . . . Recycler 16 | 1 1 . 1 1 2 1 . . . . . . 3 . . . . . 3 . . . 1 . . . 1 1 . . Carrier 1 | . . . . . . . . . . . . . . . . . . . . . . . . . . . . . . 1 Minesweeper 1 | . . . . . . . . . . . . . . . . . 1 . . . . . . . . . . . . . Mechanic 6 | . . . 2 . . 1 . . . . . . 1 . . . . . . . . . . . . . . . 1 1 Operator 11 | . . . 2 . . 3 . . . . . . 2 . . . . . 1 . . 2 . . . . . . 1 . Drone 2 | . . . . . . . . . . . . . . . . . 1 . . . . . . . . . 1 . . . Watcher 26 | . 3 . 5 1 . 3 . . . . . . 4 . . . . 2 . . . 2 2 . . . 1 . 1 2 Swarmer 74 | . 6 2 4 4 . 3 7 4 . . . . 8 . 6 . . . 8 3 . 4 4 . . . 4 . 2 5 Saboteur 2 | . . . . . . . . . . . . . . . . . . . . . . . . . . . . . . 2 Grunt 157 | . 10 . 18 5 2 6 6 2 . . . . 17 3 4 . . 3 8 1 . 3 6 6 2 . 3 5 17 30 Brawler 6 | . . . . . 1 . 1 . . . . . . 1 . . . . . . . . 1 . . . . . . 2 Duelist 12 | . . . 2 . 1 . . . . . . . . . . . . . . . . . 1 . 1 . 1 . 1 5 Protector 9 | . . . . . 3 . . . . . . . . . . . . . . . . . 1 . . . . . 1 4 Researcher 1 | . . . . . . . . . . . . . . . . . . . . . . . . . . . . . 1 . Sentry 46 | . . . 9 8 5 2 . . . . . . 4 1 1 . . 1 3 . 3 1 1 . . . 5 1 . 1 Demolisher 1 | . . . . . 1 . . . . . . . . . . . . . . . . . . . . . . . . . Specialist 2 | . . . . . . . . . . . . . . . . . . . . . . . . . . . . . . 2 Hunter 26 | . . . . . . 3 . . . . . . 1 . . . . 1 1 . . 1 . . 2 . . 1 8 8 Programmer 29 | . . . . . . 2 . . . . . . 7 . . . . 2 1 . . . 2 . 1 . . . 4 10 Heavy 1 | . . . . . . . . . . . . . . . . . . . . . . . . . . . . . . 1 Q-Series 2 | . . . . . . . . . . . . . . . . . . . . . . . . . . . . . . 2 Behemoth 6 | . . . . . . . 1 . . . . . . . . . 1 . 1 . . . . 1 . . . 2 . . Compactor 2 | . . . . . . . . . . . . 2 . . . . . . . . . . . . . . . . . . Cetus Guard 2 | . . . . . . . . . . . . . . . . . . . . 2 . . . . . . . . . . Investigator 1 | . . . . . . . . . . . . . . . . . . . . . . . . . . . . . . 1 Striker 1 | . . . . . . . . . . . . . . . . . . . . . . . . . . . . . . 1 Samaritan 3 | . . . . . . . . . . . . . . 2 . . . . . . . . . . 1 . . . . . Savage 1 | . . . . . . . . . . . . . . . . . . . . . . . . . 1 . . . . . Butcher 4 | . . . . . . . . . . . . 1 . . . . . . . . . . . . 3 . . . . . Martyr 2 | . . . . . . . . . . . . 2 . . . . . . . . . . . . . . . . . . Mutant 1 | . . . . . . . . . . . . . . . . . . . . . . . . . 1 . . . . . Best Kill Streak 19 | 2 5 2 5 8 5 5 4 4 . . . 1 7 4 7 . 1 3 7 3 2 19 7 4 3 . 7 5 12 19 Combat Bots Only 15 | . 5 2 5 8 3 4 4 4 . . . 1 5 4 7 . 1 3 4 3 2 8 6 4 3 . 4 4 11 15 Max Kills in Single Turn 16 | 1 2 1 3 1 2 2 3 2 . . . 1 3 1 1 . 1 2 3 3 1 16 4 1 1 . 2 3 3 4 Gunslinging 1 | . . . 1 . . . . . . . . . . . . . . . . . . . . . . . . . . . Exploded 5 | . . . 3 1 1 2 3 2 . . . . 1 . . . . . 3 3 . 5 3 . . . . . 3 4 Melee 1 | . . . . . . 1 . . . . . . . . . . . . . . . . . . . . . . . . Uniques/NPCs Destroyed . | . . . . . . . . . . . . . . . . . . . . . . . . . . . . . . . Combat | -11 -10 -10 -9 -9 -9 -7 -7 -7 -7 -6 -6 -6 -6 -6 -6 -6 -5 -5 -5 -5 -5 -5 -4 -4 -4 -4 -3 -3 -3 -2 -------- Run | Yrd Mat Min Mat Sto Rec Fac Low Low Zio Pro Fac Was Fac Low Low Dat Pro Fac Ext Cet Arc Hub Fac Upp Upp Zhi Pro Res Tes Res Hostile Shots Fired 2331 | . 66 14 131 72 18 121 38 36 . 1 . . 180 30 24 . 18 36 82 23 3 56 68 68 41 . 63 44 363 735 Missed 726 | . 18 6 41 26 4 43 15 16 . . . . 70 12 7 . 4 11 29 12 1 8 20 16 9 . 12 14 96 236 Damage Taken 26072 | . 500 58 1312 653 217 897 381 409 . 25 . . 1601 234 298 . 277 444 916 242 36 679 955 1137 316 . 709 494 3105 10177 Core 2524 | . 142 . 135 50 45 35 36 98 . . . . 155 20 20 . 31 20 33 . . 36 69 . 27 . 11 31 66 1464 Absorbed by Shields 6048 | . . . . . . . . . . . . . . . . . . . 239 96 12 247 268 259 191 . 512 515 1760 1949 Reduced by Siege Mode 471 | . . . . . . . . . . . . . . . . . . . . . . 64 86 21 17 . 76 23 184 . Redirected to Shielding 55 | . . . . . . . . . . . . . . . . . . . . . . . . . . . . . . 55 Ignored by Resistances 201 | . . . . . . 126 65 10 . . . . . . . . . . . . . . . . . . . . . . Regen/Repaired (Parts) 9685 | . 60 . . . 38 265 24 438 59 . 13 14 546 277 . . 61 187 487 628 . 18 478 160 781 100 63 352 1412 3224 Core Remaining (%) 75 | 100 . 43 . . 42 . . . . 75 . . . . . . 73 . . . . 91 . . . . 90 . 92 . Volleys Fired 1218 | 7 47 7 90 44 60 63 27 18 . 3 . 21 141 14 16 . 15 23 61 15 6 16 47 27 49 . 65 47 115 174 Largest 3 | 2 2 2 2 2 2 2 2 2 . 1 . 2 2 2 1 . 2 1 2 1 1 1 2 1 1 . 1 2 1 3 Hottest 185 | 70 120 95 113 136 113 117 109 109 . 54 . 93 162 123 75 . 155 101 185 105 53 53 133 68 68 . 68 107 68 156 Shots Fired 1452 | 14 94 14 172 83 63 64 29 19 . 3 . 22 140 16 16 . 17 23 69 15 6 16 52 27 49 . 64 48 115 202 Gun 324 | 14 64 . 119 57 54 . . . . . . . 1 . . . . . . . . . . . . . . . . 15 Cannon 1066 | . 30 14 51 26 9 51 23 18 . 3 . 21 130 16 16 . 17 23 63 14 6 16 51 27 49 . 64 45 108 175 Launcher 51 | . . . 2 . . 9 6 1 . . . 1 2 . . . . . 6 1 . . 1 . . . . 3 7 12 Special 11 | . . . . . . 4 . . . . . . 7 . . . . . . . . . . . . . . . . . Kinetic 784 | 7 44 7 34 . . 16 23 11 . 3 . 21 112 14 . . . 16 39 13 6 11 32 . 2 . 64 45 74 190 Thermal 327 | 7 50 7 17 26 9 . . 7 . . . . 19 2 16 . 17 7 24 1 . 5 5 27 47 . . . 34 . Explosive 51 | . . . 2 . . 9 6 1 . . . 1 2 . . . . . 6 1 . . 1 . . . . 3 7 12 Electromagnetic 279 | . . . 119 57 54 35 . . . . . . . . . . . . . . . . 14 . . . . . . . Robot Hit Streak 37 | 4 14 5 30 27 13 23 12 14 . 1 . 16 16 20 16 . 25 8 37 11 4 12 19 10 14 . 17 14 11 13 Robot Miss Streak 5 | 2 4 3 3 4 2 2 3 3 . 1 . 1 4 1 1 . 2 2 1 3 1 2 4 2 5 . 4 2 2 5 Penetration Max 4 | . . . . . . . . . . . . . 2 . . . . 1 1 1 . . . . . . 1 1 . 4 Secondary Targets 6 | . 1 . 3 2 . . . . . . . . . . . . . . . . . . . . . . . . . . Max Gunslinging Chain 1 | . 1 . 1 1 . . . . . . . . . . . . . . . . . . . . . . . . . . Shots Hit Robots 1182 | 8 60 6 133 56 54 53 26 21 . 3 . 27 143 14 15 . 11 22 68 12 6 16 41 24 37 7 51 35 84 149 Core Hits 802 | 3 31 3 87 33 40 30 25 17 . . . 7 95 13 15 . 7 17 58 9 4 36 30 7 16 4 23 16 53 123 Critical Kills 42 | . . . . . . . . . . . . 1 13 1 . . . 1 7 3 1 . . . . . . 5 2 8 Critical Parts Destroyed 58 | . . . . . . . . . . . . 2 16 3 4 . . 2 11 2 . . . . . . . 6 . 12 Critical Strikes 149 | . 4 . . . . . . . . . . 8 30 4 4 . 1 3 20 5 1 . . 1 . 4 3 11 15 35 Burn 4 | . 4 . . . . . . . . . . . . . . . . . . . . . . . . . . . . . Meltdown 2 | . . . . . . . . . . . . . . . . . . . . . . . . . . . . . 2 . Destroy 106 | . . . . . . . . . . . . 7 29 4 4 . 1 3 20 5 1 . . . . . . 11 . 21 Blast 25 | . . . . . . . . . . . . . . . . . . . . . . . . . . . . . 11 14 Sever 5 | . . . . . . . . . . . . 1 1 . . . . . . . . . . . . . 3 . . . Impale 7 | . . . . . . . . . . . . . . . . . . . . . . . . 1 . 4 . . 2 . Melee Attacks 127 | . 11 . 3 2 . 9 . 2 1 . . 5 30 . 1 . 4 6 5 . . . . 7 1 7 8 6 16 3 Impact 30 | . 11 . 3 2 . . . . . . . . . . . . . . . . . . . . . . 1 4 6 3 Slashing 61 | . . . . . . 9 . 2 1 . . 5 30 . . . . . 4 . . . . . 1 2 7 . . . Piercing 36 | . . . . . . . . . . . . . . . 1 . 4 6 1 . . . . 7 . 5 . 2 10 . Sneak Attacks 30 | . . . 1 . . 3 . . . . . 5 12 . . . 1 . 4 . . . . . 1 . 1 . 2 . Combat Hostiles 1 | . . . . . . . . . . . . . . . . . . . . . . . . . . . 1 . . . Follow-up Attacks . | . . . . . . . . . . . . . . . . . . . . . . . . . . . . . . . Damage Inflicted 75655 | 102 900 145 3301 1248 1188 2100 1921 828 . 113 . 1782 8212 899 960 . 770 1135 4426 847 376 2487 3650 1331 2376 452 3474 2798 8403 19431 Guns 4032 | 102 571 . 1713 728 735 . . . . . . . 18 . . . . . . . . . . . . . . . . 165 Cannons 52176 | . 324 129 612 283 137 1243 829 563 . 113 . 1370 6662 899 960 . 700 1135 2966 657 376 1117 2981 1158 2311 . 2990 2398 5843 13420 Explosions 14967 | . . . 818 201 316 517 1092 102 . . . 104 437 . . . . . 1080 190 . 1370 509 . . . 41 400 1995 5795 Melee 4142 | . . . 75 . . 340 . 163 . . . 308 1095 . . . 70 . 380 . . . . 173 65 452 443 . 551 27 Ramming 338 | . 5 16 83 36 . . . . . . . . . . . . . . . . . . 160 . . . . . 14 24 Kinetic 39176 | 52 374 38 415 . . 325 829 257 . 113 . 1370 5300 749 . . . 760 1899 590 376 707 2231 . 162 . 2990 2398 3656 13585 Thermal 14374 | 50 521 91 718 484 453 90 . 306 . . . . 1380 150 960 . 700 375 1067 67 . 410 577 1158 2149 . 41 . 2187 440 Explosive 11603 | . . . 297 . . 427 1092 102 . . . 104 394 . . . . . 1080 190 . . 272 . . . . 400 1995 5250 Electromagnetic 6022 | . . . 1713 728 735 918 . . . . . . 43 . . . . . . . . 1370 410 . . . . . . 105 Impact 432 | . . . 75 . . . . . . . . . . . . . . . . . . . . . . . 83 . 247 27 Slashing 2797 | . . . . . . 340 . 163 . . . 308 1095 . . . . . 315 . . . . . 65 151 360 . . . Piercing 913 | . . . . . . . . . . . . . . . . . 70 . 65 . . . . 173 . 301 . . 304 . Highest Corruption 24 | . . . 1 7 8 6 5 2 2 . . . 7 7 7 4 4 2 2 . . . . . 4 4 4 . 6 24 Average Corruption 4 | . . . 1 3 7 5 2 2 2 . . . 4 7 4 4 4 1 1 . . . . . 3 4 4 . 2 6 Corruption Purged 9 | . . . . . . 1 3 . . . . . . . 3 . . . 2 . . . . . . . . . . . Corruption Blocked . | . . . . . . . . . . . . . . . . . . . . . . . . . . . . . . . Effects 350 | . . . 13 16 106 24 12 4 2 . . . 61 23 18 . 10 2 15 . . . . . 3 3 14 . 14 10 Message Errors 87 | . . . 2 4 25 5 3 1 1 . . . 19 5 4 . 3 1 4 . . . . . 2 . 3 . 4 1 Matter Fused 103 | . . . 2 5 35 7 4 1 . . . . 21 8 4 . 4 . 2 . . . . . . 2 4 . 2 2 Heat Flow Errors 31 | . . . 2 2 12 2 . 1 1 . . . 3 2 1 . 1 . 1 . . . . . . . . . 1 2 Energy Discharges 50 | . . . 3 . 15 4 1 1 . . . . 9 5 4 . . 1 2 . . . . . 1 . 2 . 1 1 Parts Rejected 2 | . . . . . 1 1 . . . . . . . . . . . . . . . . . . . . . . . . Parts Fused 4 | . . . . . 1 . . . . . . . . . 2 . . . . . . . . . . . 1 . . . Data Loss (minor) 33 | . . . . 3 8 2 1 . . . . . 4 2 2 . 1 . 2 . . . . . . 1 1 . 4 2 Data Loss (major) 15 | . . . . . 4 2 1 . . . . . 2 . 1 . . . 2 . . . . . . . 1 . 1 1 Misfires 8 | . . . 3 . 3 . 1 . . . . . . . . . 1 . . . . . . . . . . . . . Alerts 11 | . . . 1 1 1 1 1 . . . . . 1 1 . . . . 2 . . . . . . . 1 . 1 . Weapon Failures 6 | . . . . 1 1 . . . . . . . 2 . . . . . . . . . . . . . 1 . . 1 Overload Shots 6 | . . . . . . . . . . . . . 6 . . . . . . . . . . . . . . . . . Overflow Damage 5089 | . . . 43 22 21 91 56 . . 8 . . 359 61 58 . . 28 159 . . 10 362 . 52 196 159 64 847 2493 Projectiles 3706 | . . . 14 . . . . . . 8 . . 176 61 58 . . 28 25 . . . 327 . 52 . 142 35 604 2176 Explosions 694 | . . . 29 22 21 . 56 . . . . . . . . . . . 102 . . 10 4 . . . 11 29 93 317 Melee 689 | . . . . . . 91 . . . . . . 183 . . . . . 32 . . . 31 . . 196 6 . 150 . Knockbacks 204 | . 1 . 2 . . 3 6 2 . 1 . . 34 5 . . . 7 8 3 1 6 19 . 1 . 11 10 21 63 Impact 7 | . . . 2 . . . . . . . . . . . . . . . . . . . 1 . . . 1 . 3 . Kinetic 177 | . 1 . . . . 3 5 2 . 1 . . 31 5 . . . 7 7 2 1 6 15 . 1 . 10 10 15 55 Secondary 20 | . . . . . . . 1 . . . . . 3 . . . . . 1 1 . . 3 . . . . . 3 8 Self-Inflicted Damage 1054 | . . . 137 . . 31 27 . . . . . . . . . . . 30 . . 94 84 . . . . 58 239 354 Shots 22 | . . . 4 . . 1 2 . . . . . . . . . . . 1 . . 1 1 . . . . 1 4 7 Rammed 25 | . 1 2 11 3 . . . . . . . . . . . . . . . . . . 3 . . . . . 1 4 Targets Rammed 31 | . 2 3 14 3 . . . . . . . . . . . . . . . . . . 4 . . . . . 1 4 Kicked . | . . . . . . . . . . . . . . . . . . . . . . . . . . . . . . . Crushed 6 | . 1 1 3 . . . . . . . . . . . . . . . . . . . 1 . . . . . . . Highest Temperature 354 | 54 354 247 295 207 274 320 138 284 159 . . 24 342 240 255 . 274 96 236 108 68 158 7 43 61 . 230 260 348 322 Average Temperature 74 | 27 71 129 80 65 75 75 56 63 80 . . 12 70 94 102 . 108 53 56 45 28 36 4 24 26 . 64 97 95 75 Received Heat Transfer 4120 | . 141 . 528 174 81 171 111 342 . . . . 358 102 63 . 36 108 150 24 . 182 195 88 24 . 117 59 454 612 Effects 18 | . 1 . 4 . . 2 . . . . . . . . . . . . . . . . . . . . . 2 5 4 Shutdowns 1 | . . . . . . 1 . . . . . . . . . . . . . . . . . . . . . . . . Energy Bleed 3 | . . . 1 . . 1 . . . . . . . . . . . . . . . . . . . . . . . 1 Interference 13 | . . . 3 . . . . . . . . . . . . . . . . . . . . . . . . 2 5 3 Damage (minor) 1 | . 1 . . . . . . . . . . . . . . . . . . . . . . . . . . . . . Siege Activations 37 | . . . . . . . . . . . . . . . . . . . . . . 2 3 4 4 . 5 7 12 . Total Turns 513 | . . . . . . . . . . . . . . . . . . . . . . 14 41 63 54 . 85 87 169 . Longest Duration 45 | . . . . . . . . . . . . . . . . . . . . . . 9 18 21 22 . 45 23 27 . Robots Corrupted 9 | . . . 1 . 2 4 . . . . . . . . . . . . . . . . 2 . . . . . . . Combat Hostiles 8 | . . . 1 . 1 4 . . . . . . . . . . . . . . . . 2 . . . . . . . Parts Fried 40 | . . . 8 5 4 8 . . . . . . . . . . . . . . . 6 4 . . . . 1 2 2 Impact Corruptions 15 | . . . . . . . . . . . . . 1 . . . . . . . . . 3 . . . . . 7 4 Robots Melted 2 | . . . . . . . . . . . . . . . . . . . . . . . . . . . . . 2 . Combat Hostiles 2 | . . . . . . . . . . . . . . . . . . . . . . . . . . . . . 2 . Parts Melted 22 | 1 2 . 1 . 1 1 . 2 . . . . 3 . . . 1 . 1 . . . . . . . . 1 6 2 Heat Transferred 13448 | 148 1628 185 1120 781 722 50 . 475 . . . . 994 150 750 . 650 375 1743 74 . 259 300 592 1295 . 80 . 906 171 Parts Sabotaged 4 | . . . . . . . . . . . . . . . . . . . . . . . . . . . . . 1 3 Parts Stolen . | . . . . . . . . . . . . . . . . . . . . . . . . . . . . . . . Parts Stripped . | . . . . . . . . . . . . . . . . . . . . . . . . . . . . . . . Power Chain Reactions 20 | . . . 8 4 4 2 . . . . . . . . . . . . . . . . 1 . . . . . . 1 Alert | -11 -10 -10 -9 -9 -9 -7 -7 -7 -7 -6 -6 -6 -6 -6 -6 -6 -5 -5 -5 -5 -5 -5 -4 -4 -4 -4 -3 -3 -3 -2 ------- Run | Yrd Mat Min Mat Sto Rec Fac Low Low Zio Pro Fac Was Fac Low Low Dat Pro Fac Ext Cet Arc Hub Fac Upp Upp Zhi Pro Res Tes Res Peak Influence 3566 | 10 374 58 681 834 366 647 . . . . 494 200 813 . . . . 311 590 553 401 1602 1576 . . . . 1655 2435 3566 Initial 1369 | . 6 3 22 287 303 375 . . . . 494 172 . . . . . 2 88 256 218 140 784 . . . . 759 1100 1369 Average 495 | 8 90 33 382 530 116 447 . . . . 494 124 321 . . . . 152 253 388 388 537 1191 . . . . 1319 1650 2287 Maximum Alert Level 5 | . 1 . 2 3 1 2 . . . . 2 1 3 . . . . 1 2 2 2 5 4 . . . . 5 5 5 Low Security (%) 33 | 100 90 100 16 . 77 . . . . . . 64 25 . . . . 70 44 . . 18 . . . . . . . . Level 1 27 | . 9 . 36 45 22 26 . . . . . 35 39 . . . . 29 43 76 10 15 . . . . . . . . Level 2 21 | . . . 47 19 . 73 . . . . 100 . 31 . . . . . 11 23 89 54 . . . . . . . . Level 3 3 | . . . . 34 . . . . . . . . 3 . . . . . . . . . 38 . . . . 24 . . Level 4 7 | . . . . . . . . . . . . . . . . . . . . . . 5 61 . . . . 65 49 24 Level 5 3 | . . . . . . . . . . . . . . . . . . . . . . 6 . . . . . 5 35 25 High Security 3 | . . . . . . . . . . . . . . . . . . . . . . . . . . . . 4 15 50 Max Security . | . . . . . . . . . . . . . . . . . . . . . . . . . . . . . . . Squads Dispatched 94 | . 3 . 6 2 . 4 . . . . . . 20 . . . . 4 5 . . 3 3 . . . . 8 14 22 Investigation 19 | . 3 . 3 1 . 1 . . . . . . 2 . . . . 1 1 . . 1 . . . . . 3 2 1 Extermination 14 | . . . . . . 1 . . . . . . 7 . . . . 2 . . . . 1 . . . . . 2 1 Reinforcement 22 | . . . 2 1 . 2 . . . . . . 4 . . . . 1 3 . . 1 . . . . . 2 3 3 Assault 28 | . . . 1 . . . . . . . . . . . . . . . 1 . . . 2 . . . . . 7 17 Garrison 11 | . . . . . . . . . . . . . 7 . . . . . . . . 1 . . . . . 3 . . Intercept . | . . . . . . . . . . . . . . . . . . . . . . . . . . . . . . . Searches Triggered 1 | . . . . . . 1 . . . . . . . . . . . . . . . . . . . . . . . . Construction Impeded 6 | . . . 1 . . 1 . . . . . . 1 . . . . . 1 . . . . . . . . . 1 1 Haulers Reinforced 4 | . . . . . . . . . . . . . 2 . . . . . . . . . . . . . . 2 . . Active Scanning Responses . | . . . . . . . . . . . . . . . . . . . . . . . . . . . . . . . Cargo Convoy Interrupts . | . . . . . . . . . . . . . . . . . . . . . . . . . . . . . . . Stealth | -11 -10 -10 -9 -9 -9 -7 -7 -7 -7 -6 -6 -6 -6 -6 -6 -6 -5 -5 -5 -5 -5 -5 -4 -4 -4 -4 -3 -3 -3 -2 --------- Run | Yrd Mat Min Mat Sto Rec Fac Low Low Zio Pro Fac Was Fac Low Low Dat Pro Fac Ext Cet Arc Hub Fac Upp Upp Zhi Pro Res Tes Res Distress Signals 32 | . . . 4 3 . 2 . . . . . . 3 . . . 1 . 2 2 . . 2 . . . 2 4 2 5 Communications Jammed 145 | . . . . . . . . . . . . . . . . . . . . . . 19 61 . . . 26 . 21 18 Distress Signals 143 | . . . . . . . . . . . . . . . . . . . . . . 17 61 . . . 26 . 21 18 Times Spotted 656 | . 21 3 59 25 4 29 17 9 . 8 . 8 54 4 11 . 2 11 36 16 5 13 28 8 13 . 23 23 91 135 Peak Tracking Total 28 | . 5 3 8 6 1 4 5 4 . 4 . 3 5 3 4 . 1 4 5 5 1 4 5 4 5 . 6 6 15 28 Tactical Retreats 36 | . 1 . 6 4 . 2 1 . . . . 1 2 . 1 . . 2 . . . 1 . 1 1 . 1 . 6 6 Traps | -11 -10 -10 -9 -9 -9 -7 -7 -7 -7 -6 -6 -6 -6 -6 -6 -6 -5 -5 -5 -5 -5 -5 -4 -4 -4 -4 -3 -3 -3 -2 ------- Run | Yrd Mat Min Mat Sto Rec Fac Low Low Zio Pro Fac Was Fac Low Low Dat Pro Fac Ext Cet Arc Hub Fac Upp Upp Zhi Pro Res Tes Res Traps Triggered 21 | . 3 . 2 4 . 3 . . . . 1 . 2 . . . . . . . . . 2 . . . . 2 2 . Indirectly . | . . . . . . . . . . . . . . . . . . . . . . . . . . . . . . . Trap Hack Attempts . | . . . . . . . . . . . . . . . . . . . . . . . . . . . . . . . Triggered . | . . . . . . . . . . . . . . . . . . . . . . . . . . . . . . . Disarmed . | . . . . . . . . . . . . . . . . . . . . . . . . . . . . . . . Reprogrammed . | . . . . . . . . . . . . . . . . . . . . . . . . . . . . . . . Reused . | . . . . . . . . . . . . . . . . . . . . . . . . . . . . . . . Traps Extracted . | . . . . . . . . . . . . . . . . . . . . . . . . . . . . . . . Installed . | . . . . . . . . . . . . . . . . . . . . . . . . . . . . . . . Triggered 8 | . . . . . . . . . . . . . . . 2 . 2 . . . . . . 4 . . . . . . Most Traps Carried 5 | . . . . . . . . . . . . . . . . . 5 5 3 3 . . . . . . . . . . Machines | -11 -10 -10 -9 -9 -9 -7 -7 -7 -7 -6 -6 -6 -6 -6 -6 -6 -5 -5 -5 -5 -5 -5 -4 -4 -4 -4 -3 -3 -3 -2 ---------- Run | Yrd Mat Min Mat Sto Rec Fac Low Low Zio Pro Fac Was Fac Low Low Dat Pro Fac Ext Cet Arc Hub Fac Upp Upp Zhi Pro Res Tes Res Machines Disabled 76 | . 4 . 3 5 . . . . . . . . 15 . . . . 1 2 . . 13 6 . . . 3 4 16 4 Max in Single Turn 8 | . 1 . 1 2 . . . . . . . . 3 . . . . 1 . . . 8 3 . . . 1 1 2 1 Garrison Access 4 | . . . . . . . . . . . . . . . . . . 1 . . . . . . . . . 1 1 1 Network Hub 1 | . . . . . . . . . . . . . . . . . . . . . . 1 . . . . . . . . Energy Cycler 1 | . . . . . . . . . . . . . . . . . . . 1 . . . . . . . . . . . Machines Repaired . | . . . . . . . . . . . . . . . . . . . . . . . . . . . . . . . Machines Dismantled 1 | . . . . 1 . . . . . . . . . . . . . . . . . . . . . . . . . . Machines Sabotaged . | . . . . . . . . . . . . . . . . . . . . . . . . . . . . . . . Overloaded Fab Kills . | . . . . . . . . . . . . . . . . . . . . . . . . . . . . . . . Hacking | -11 -10 -10 -9 -9 -9 -7 -7 -7 -7 -6 -6 -6 -6 -6 -6 -6 -5 -5 -5 -5 -5 -5 -4 -4 -4 -4 -3 -3 -3 -2 --------- Run | Yrd Mat Min Mat Sto Rec Fac Low Low Zio Pro Fac Was Fac Low Low Dat Pro Fac Ext Cet Arc Hub Fac Upp Upp Zhi Pro Res Tes Res Machines Accessed 111 | . 11 . 13 8 11 6 . . . . . . 7 . 1 4 . 6 2 3 . 2 8 1 1 6 1 5 14 1 Terminals 64 | . 8 . 10 8 6 4 . . . . . . . . 1 . . 1 . 3 . 2 6 . 1 . 1 3 10 . Fabricators 8 | . . . . . . 1 . . . . . . 3 . . . . 1 . . . . 1 . . . . . 2 . Repair Stations 4 | . 1 . 1 . . 1 . . . . . . . . . . . . . . . . . . . . . 1 . . Recycling Units 17 | . 2 . 2 . 5 . . . . . . . 2 . . . . 3 2 . . . 1 . . . . . . . Scanalyzers 2 | . . . . . . . . . . . . . 1 . . . . . . . . . . . . . . . 1 . Garrison Access 5 | . . . . . . . . . . . . . 1 . . . . 1 . . . . . . . . . 1 1 1 Total Hacks 319 | . 37 . 33 18 39 13 . . . . . . 15 . 2 28 . 13 9 8 . 3 22 1 2 18 1 11 42 4 Successful 154 | . 19 . 11 6 18 3 . . . . . . 5 . 2 28 . 8 4 3 . 1 9 1 2 18 1 2 12 1 Failed 165 | . 18 . 22 12 21 10 . . . . . . 10 . . . . 5 5 5 . 2 13 . . . . 9 30 3 Catastrophic 45 | . 2 . 3 4 2 3 . . . . . . 5 . . . . . 1 2 . 2 8 . . . . 3 10 . Database Lockouts . | . . . . . . . . . . . . . . . . . . . . . . . . . . . . . . . Manual 118 | . 24 . 18 9 24 3 . . 1 . . . 3 . . . . 1 3 1 . . 14 . . . . 5 11 1 Terminals 180 | . 27 . 30 18 18 6 . . . . . . . . 2 . . 1 5 8 . 3 20 . 2 . 1 6 33 . Fabricators 16 | . . . . . . 3 . . . . . . 6 . . . . 3 . . . . 1 . . . . . 3 . Repair Stations 10 | . 3 . 1 . . 4 . . . . . . . . . . . . . . . . . . . . . 2 . . Recycling Units 44 | . 7 . 2 . 21 . . . . . . . 4 . . . . 5 4 . . . 1 . . . . . . . Scanalyzers 5 | . . . . . . . . . . . . . 3 . . . . . . . . . . . . . . . 2 . Garrison Access 17 | . . . . . . . . . . . . . 2 . . . . 4 . . . . . . . . . 3 4 4 Terminal Hacks 98 | . 10 . 6 5 4 2 . . . . . . . . 2 28 . 1 2 3 . 1 4 1 2 18 1 . 8 . Record 26 | . . . . . . . . . . . . . . . 2 11 . . . 2 . 1 . . 2 7 . . 1 . Part Schematic 15 | . 2 . . . 1 . . . . . . . . . . 9 . . . . . . . . . 3 . . . . Robot Schematic 7 | . . . . . 2 . . . . . . . . . . 5 . . . . . . . . . . . . . . Robot Analysis 8 | . 2 . 1 . . . . . . . . . . . . . . . . . . . . . . 4 . . 1 . Prototype ID Bank 9 | . 1 . 1 . . . . . . . . . . . . 3 . . . . . . . . . 4 . . . . Open Door 8 | . . . . 4 . . . . . . . . . . . . . . . 1 . . . 1 . . 1 . 1 . Open DSF 2 | . . . . . . 1 . . . . . . . . . . . 1 . . . . . . . . . . . . Level Access Points 1 | . . . . . . . . . . . . . . . . . . . . . . . 1 . . . . . . . Branch Access Points 3 | . 1 . 1 . . . . . . . . . . . . . . . . . . . 1 . . . . . . . Terminal Index 2 | . . . 1 . . . . . . . . . . . . . . . . . . . . . . . . . 1 . Alert Level 6 | . 1 . 1 . 1 1 . . . . . . . . . . . . . . . . 1 . . . . . 1 . Unreport Threat 3 | . 1 . . . . . . . . . . . . . . . . . . . . . 1 . . . . . 1 . Locate Traps 2 | . 1 . 1 . . . . . . . . . . . . . . . . . . . . . . . . . . . Transport Status 1 | . . . . . . . . . . . . . . . . . . . 1 . . . . . . . . . . . Hauler Manifests 2 | . 1 . . . . . . . . . . . . . . . . . 1 . . . . . . . . . . . Zone Layout 3 | . . . . 1 . . . . . . . . . . . . . . . . . . . . . . . . 2 . Fabricator Hacks 3 | . . . . . . . . . . . . . . . . . . 2 . . . . 1 . . . . . . . Network Status 1 | . . . . . . . . . . . . . . . . . . 1 . . . . . . . . . . . . Build 2 | . . . . . . . . . . . . . . . . . . 1 . . . . 1 . . . . . . . Repair Station Hacks 4 | . 2 . . . . 1 . . . . . . . . . . . . . . . . . . . . . 1 . . Scan Component 3 | . 1 . . . . 1 . . . . . . . . . . . . . . . . . . . . . 1 . . Repair 1 | . 1 . . . . . . . . . . . . . . . . . . . . . . . . . . . . . Recycling Unit Hacks 17 | . 1 . 2 . 5 . . . . . . . 2 . . . . 4 2 . . . 1 . . . . . . . Report Inventory 14 | . 1 . 2 . 4 . . . . . . . 1 . . . . 3 2 . . . 1 . . . . . . . Retrieve Components 3 | . . . . . 1 . . . . . . . 1 . . . . 1 . . . . . . . . . . . . Scanalyzer 3 | . . . . . . . . . . . . . 2 . . . . . . . . . . . . . . . 1 . Insert Component 2 | . . . . . . . . . . . . . 1 . . . . . . . . . . . . . . . 1 . Analyze 1 | . . . . . . . . . . . . . 1 . . . . . . . . . . . . . . . . . Garrison Access Hacks . | . . . . . . . . . . . . . . . . . . . . . . . . . . . . . . . Unauthorized Hacks 29 | . 6 . 3 1 9 . . . . . . . 1 . . . . 1 . . . . 3 . . . . 1 3 1 Terminals 16 | . 4 . 2 1 3 . . . . . . . . . . . . . . . . . 3 . . . . 1 2 . Assimilate 1 | . 1 . . . . . . . . . . . . . . . . . . . . . . . . . . . . . Botnet 13 | . 2 . 1 1 3 . . . . . . . . . . . . . . . . . 3 . . . . 1 2 . Operators 2 | . 1 . 1 . . . . . . . . . . . . . . . . . . . . . . . . . . . Fabricators . | . . . . . . . . . . . . . . . . . . . . . . . . . . . . . . . Repair Stations 2 | . 1 . 1 . . . . . . . . . . . . . . . . . . . . . . . . . . . Mechanics 2 | . 1 . 1 . . . . . . . . . . . . . . . . . . . . . . . . . . . Recycling Units 8 | . 1 . . . 6 . . . . . . . 1 . . . . . . . . . . . . . . . . . Reject 1 | . . . . . 1 . . . . . . . . . . . . . . . . . . . . . . . . . Mask 2 | . . . . . 1 . . . . . . . 1 . . . . . . . . . . . . . . . . . Tunnel 5 | . 1 . . . 4 . . . . . . . . . . . . . . . . . . . . . . . . . Scanalyzers . | . . . . . . . . . . . . . . . . . . . . . . . . . . . . . . . Garrison Access 3 | . . . . . . . . . . . . . . . . . . 1 . . . . . . . . . . 1 1 Jam 3 | . . . . . . . . . . . . . . . . . . 1 . . . . . . . . . . 1 1 Data Cores Recovered 4 | . . . . . . 1 . . . . . . 1 . . . . . . . . 1 . . . . . . 1 . Used 1 | . . . . . . 1 . . . . . . . . . . . . . . . . . . . . . . . . Hacking Detections 77 | . 9 . 10 4 9 5 . . . . . . 5 . . . . 3 2 2 . 2 7 . . . . 5 13 1 Full Trace Events 10 | . 1 . 1 1 3 1 . . . . . . 1 . . . . . 1 . . . . . . . . 1 . . Feedback Events 2 | . . . 1 . 1 . . . . . . . . . . . . . . . . . . . . . . . . . Corruption 2 | . . . 1 . 1 . . . . . . . . . . . . . . . . . . . . . . . . . Feedback Blocked . | . . . . . . . . . . . . . . . . . . . . . . . . . . . . . . . Robot Schematics Acquired 11 | . . . . . 2 . . . 4 . . . . . . 5 . . . . . . . . . . . . . . Robots Built . | . . . . . . . . . . . . . . . . . . . . . . . . . . . . . . . Authchips . | . . . . . . . . . . . . . . . . . . . . . . . . . . . . . . . Time . | . . . . . . . . . . . . . . . . . . . . . . . . . . . . . . . Total Robot Build Rating . | . . . . . . . . . . . . . . . . . . . . . . . . . . . . . . . Part Schematics Acquired 35 | . 2 . . . 1 . . . 15 . . . 1 . . 9 . . . . . . . . . 3 . . 4 . Parts Built 3 | . . . . . . . . . . . . . . . . . . 2 . . . . 1 . . . . . . . Authchips . | . . . . . . . . . . . . . . . . . . . . . . . . . . . . . . . Time 197 | . . . . . . . . . . . . . . . . . . 128 . . . . 69 . . . . . . . Total Part Build Rating 25 | . . . . . . . . . . . . . . . . . . 16 . . . . 9 . . . . . . . Parts Repaired 1 | . 1 . . . . . . . . . . . . . . . . . . . . . . . . . . . . . Time 26 | . 26 . . . . . . . . . . . . . . . . . . . . . . . . . . . . . Parts Recycled . | . . . . . . . . . . . . . . . . . . . . . . . . . . . . . . . Recycled Matter . | . . . . . . . . . . . . . . . . . . . . . . . . . . . . . . . Retrieved Matter . | . . . . . . . . . . . . . . . . . . . . . . . . . . . . . . . Retrieved Components 21 | . . . . . 9 . . . . . . . 10 . . . . 2 . . . . . . . . . . . . Parts Scanalyzed 1 | . . . . . . . . . . . . . 1 . . . . . . . . . . . . . . . . . Part Schematics Acquired 1 | . . . . . . . . . . . . . 1 . . . . . . . . . . . . . . . . . Parts Damaged . | . . . . . . . . . . . . . . . . . . . . . . . . . . . . . . . Bothacking | -11 -10 -10 -9 -9 -9 -7 -7 -7 -7 -6 -6 -6 -6 -6 -6 -6 -5 -5 -5 -5 -5 -5 -4 -4 -4 -4 -3 -3 -3 -2 ------------ Run | Yrd Mat Min Mat Sto Rec Fac Low Low Zio Pro Fac Was Fac Low Low Dat Pro Fac Ext Cet Arc Hub Fac Upp Upp Zhi Pro Res Tes Res Used RIF Installer . | . . . . . . . . . . . . . . . . . . . . . . . . . . . . . . . Robots Hacked 4 | . . . . . . 1 . . . . . . 3 . . . . . . . . . . . . . . . . . Non-combat 4 | . . . . . . 1 . . . . . . 3 . . . . . . . . . . . . . . . . . Combat . | . . . . . . . . . . . . . . . . . . . . . . . . . . . . . . . Robot Hacks Applied 9 | . . . . . . 2 . . . . . . 7 . . . . . . . . . . . . . . . . . parse_system 1 | . . . . . . . . . . . . . 1 . . . . . . . . . . . . . . . . . no_distress 4 | . . . . . . 1 . . . . . . 3 . . . . . . . . . . . . . . . . . find_fabricator 3 | . . . . . . 1 . . . . . . 2 . . . . . . . . . . . . . . . . . find_dsf 1 | . . . . . . . . . . . . . 1 . . . . . . . . . . . . . . . . . Relay Couplers Released 5 | . . . . . . . . . . . . . 3 . . . . . . . . . . . . . . 2 . . Machine Destruction 2 | . . . . . . . . . . . . . . . . . . . . . . . . . . . . 2 . . Programmers 3 | . . . . . . . . . . . . . 3 . . . . . . . . . . . . . . . . . Fabnet Peak Effective % . | . . . . . . . . . . . . . . . . . . . . . . . . . . . . . . . Robots Rewired 19 | . . . . . 1 . 1 . . . . . . . . . . . 6 . . . . . . . 11 . . . Allies Hacked . | . . . . . . . . . . . . . . . . . . . . . . . . . . . . . . . Hacks Repelled . | . . . . . . . . . . . . . . . . . . . . . . . . . . . . . . . Allies | -11 -10 -10 -9 -9 -9 -7 -7 -7 -7 -6 -6 -6 -6 -6 -6 -6 -5 -5 -5 -5 -5 -5 -4 -4 -4 -4 -3 -3 -3 -2 -------- Run | Yrd Mat Min Mat Sto Rec Fac Low Low Zio Pro Fac Was Fac Low Low Dat Pro Fac Ext Cet Arc Hub Fac Upp Upp Zhi Pro Res Tes Res Total Allies 51 | . 1 . . . 1 . 1 . 5 . . 19 1 . . . . . 7 5 . . . . . . 11 . . . Largest Group 19 | . 1 1 1 . 1 . 1 1 6 5 . 19 9 . . . . . 4 6 5 4 2 . . . 9 9 1 . Highest-Rated Group 702 | . 10 10 9 . 34 . 20 20 152 132 . 702 375 . . . . . 257 633 537 384 183 . . . 460 460 82 . Highest-Rated Ally 159 | . 10 10 9 . 34 . 20 20 31 31 . 50 46 . . . . . 159 159 153 96 96 . . . 89 89 82 . Total Orders 33 | . 4 . 5 3 1 . . . . . . . 12 . . . . 4 4 . . . . . . . . . . . STAY 8 | . 2 . 3 . 1 . . . . . . . 2 . . . . . . . . . . . . . . . . . FOLLOW 6 | . 2 . 2 . . . . . . . . . 2 . . . . . . . . . . . . . . . . . EXPLORE 4 | . . . . 2 . . . . . . . . 2 . . . . . . . . . . . . . . . . . RETURN 15 | . . . . 1 . . . . . . . . 6 . . . . 4 4 . . . . . . . . . . . Ally Attacks 528 | . . . . . . . . 5 . 39 . 74 37 . . . . . 88 36 12 43 28 . . . 81 69 16 . Total Damage 17360 | . . . . . . . . 151 . 555 . 4120 1041 . . . . . 2965 1501 445 1473 1044 . . . 1283 2458 324 . Kills 108 | . . . . . . . . 1 . 8 . 10 10 . . . . . 23 11 1 11 8 . . . 6 15 4 . Allies Corrupted 5 | . . . . 1 1 . . . . . . . 3 . . . . . . . . . . . . . . . . . Allies Melted 3 | . . . . . . . . . . . . . . . . . . . 1 . . 2 . . . . . . . . Intel | -11 -10 -10 -9 -9 -9 -7 -7 -7 -7 -6 -6 -6 -6 -6 -6 -6 -5 -5 -5 -5 -5 -5 -4 -4 -4 -4 -3 -3 -3 -2 ------- Run | Yrd Mat Min Mat Sto Rec Fac Low Low Zio Pro Fac Was Fac Low Low Dat Pro Fac Ext Cet Arc Hub Fac Upp Upp Zhi Pro Res Tes Res Robot Analysis Total 8 | . 2 . 1 . . . . . . . . . . . . . . . . . . . . . . 4 . . 1 . Derelict Logs Recovered 10 | . . . . . . . 1 2 1 2 . . . . 1 . 1 . . . . . . 1 1 . . . . . Drone Launches 18 | . . . . 2 . . . . . . . . 8 . . . . 4 4 . . . . . . . . . . . Drone Recoveries 14 | . . . . 1 . . . . . . . . 6 . . . . 4 3 . . . . . . . . . . . Exploration | -11 -10 -10 -9 -9 -9 -7 -7 -7 -7 -6 -6 -6 -6 -6 -6 -6 -5 -5 -5 -5 -5 -5 -4 -4 -4 -4 -3 -3 -3 -2 ------------- Run | Yrd Mat Min Mat Sto Rec Fac Low Low Zio Pro Fac Was Fac Low Low Dat Pro Fac Ext Cet Arc Hub Fac Upp Upp Zhi Pro Res Tes Res Turns Passed 32173 | 96 1921 106 4698 967 3265 1160 798 352 1102 360 85 614 3281 642 1150 136 566 1131 1815 936 358 396 812 899 675 175 703 719 1221 1034 Spaces Moved 19819 | 62 1021 49 2499 447 1675 834 1056 367 1223 374 94 354 1472 367 629 84 284 583 942 506 145 219 570 756 650 175 451 575 936 420 Core 24 | . . . . . . . . . . . . . . . . . . . . . . . . . . . . . . 24 Treads 13423 | . 1014 49 2499 447 1659 567 . . . . . . 472 367 629 84 284 275 305 506 145 219 225 756 650 175 451 575 936 134 Legs 3027 | 62 7 . . . . 64 . 84 1223 374 94 354 358 . . . . . . . . . 345 . . . . . . 62 Wheels 91 | . . . . . . . . . . . . . 91 . . . . . . . . . . . . . . . . . Hover 2104 | . . . . . 11 203 1056 283 . . . . 551 . . . . . . . . . . . . . . . . . Flight 1150 | . . . . . 5 . . . . . . . . . . . . 308 637 . . . . . . . . . . 200 Fastest Speed 50 | 120 120 160 160 160 74 57 57 57 86 86 86 142 142 163 163 163 163 163 143 143 157 157 80 80 80 80 80 80 80 50 Average Speed 128 | 120 159 160 168 160 130 107 57 63 86 86 88 142 184 163 163 163 163 163 156 153 157 157 102 80 80 80 80 80 81 156 Slowest Speed 266 | 120 160 160 240 160 163 207 57 86 86 86 142 142 266 163 163 163 163 163 163 157 157 157 157 80 80 80 80 80 153 184 Overloaded Moves . | . . . . . . . . . . . . . . . . . . . . . . . . . . . . . . . Propulsion Burnouts . | . . . . . . . . . . . . . . . . . . . . . . . . . . . . . . . Robots Hopped 14 | . . . . . . . . . . . . . . . . . . 2 12 . . . . . . . . . . . Cave-ins Triggered . | . . . . . . . . . . . . . . . . . . . . . . . . . . . . . . . Exploration Rate (%) 58 | 5 99 16 97 78 99 16 84 73 84 55 3 94 53 60 72 69 40 14 86 94 95 36 18 72 77 60 46 22 88 13 Regions Visited 30 Branch Regions 20 Pre-discovered Areas 10 | . 1 . . . 4 . . . . 1 . . . . . 1 . . . . . . . . . 3 . . . . Known Exits Taken 22 | . 1 . 1 . . . 1 . 1 1 . . 1 1 1 1 1 1 1 1 1 1 1 1 1 1 1 1 1 . Unknown Exits Taken 6 | 1 . 1 . 1 1 1 . 1 . . . . . . . . . . . . . . . . . . . . . . Scrap Searched 23 | . . . . . . . 2 3 4 2 . . . 1 4 . . . . . . . . 4 3 . . . . . Spaces Dug 84 | . 7 . 2 . . 1 . . . . . . 16 . 1 . 4 10 . . . . . 5 1 . . 11 18 8 Terrain Destroyed 1229 | . 7 . 38 12 4 51 80 16 . 3 . 14 135 8 12 . 7 32 72 26 3 168 70 11 8 . 51 85 91 225 Melee 32 | . 7 . 2 . . 1 . . . . . . 5 . 1 . 3 6 . . . . . . . . . 4 2 1 Projectile 417 | . . . . . . . 1 . . 3 . 3 80 8 11 . 4 26 5 8 3 20 23 11 8 . 51 58 38 56 AOE 778 | . . . 36 12 4 50 79 16 . . . 11 50 . . . . . 66 18 . 148 47 . . . . 23 51 167 Terrain Rammed . | . . . . . . . . . . . . . . . . . . . . . . . . . . . . . . . Walls Destroyed . | . . . . . . . . . . . . . . . . . . . . . . . . . . . . . . . Machines Disabled . | . . . . . . . . . . . . . . . . . . . . . . . . . . . . . . . Actions | -11 -10 -10 -9 -9 -9 -7 -7 -7 -7 -6 -6 -6 -6 -6 -6 -6 -5 -5 -5 -5 -5 -5 -4 -4 -4 -4 -3 -3 -3 -2 --------- Run | Yrd Mat Min Mat Sto Rec Fac Low Low Zio Pro Fac Was Fac Low Low Dat Pro Fac Ext Cet Arc Hub Fac Upp Upp Zhi Pro Res Tes Res Total 25091 | 69 1198 61 2812 593 2730 1021 1219 461 1273 409 96 440 1857 394 734 84 363 729 1192 652 270 254 745 1011 770 194 718 773 1289 680 Wait 2663 | . 74 1 81 48 818 44 115 57 30 33 1 36 136 10 69 . 51 76 69 91 118 14 94 203 54 3 67 99 145 26 Move 19767 | 61 1020 48 2498 446 1674 833 1055 366 1222 373 94 353 1471 366 628 83 283 578 921 505 144 218 569 755 649 174 450 574 936 420 Hop 10 | . . . . . . . . . . . . . . . . . . 2 8 . . . . . . . . . . . Pick Up 209 | . 14 . 38 6 65 10 2 1 5 . . 3 5 . 2 . 3 10 2 8 . . 6 1 4 2 2 9 7 4 Fast Attach 138 | . 7 . 6 8 1 16 . 4 4 . . 7 11 . 4 . . 7 6 7 . 2 8 . . 4 . 8 16 12 Attach 71 | . . 1 8 . 2 4 1 1 1 . 1 . 5 . 3 . 3 5 2 1 . . 2 2 1 . . 7 3 18 Detach 61 | . 1 1 5 1 5 5 . . 3 . . . 6 . 3 1 2 4 4 2 . . . 1 . . . 6 6 5 Swap 222 | 1 8 . 24 12 . 7 8 6 1 . . 2 39 3 5 . 2 5 14 6 2 2 5 11 9 1 10 8 23 8 Drop 317 | . 14 . 45 15 85 17 1 6 6 . . 13 13 1 3 . . 13 11 17 . 2 10 4 3 3 1 9 22 3 Fire 1218 | 7 47 7 90 44 60 63 27 18 . 3 . 21 141 14 16 . 15 23 61 15 6 16 47 27 49 . 65 47 115 174 Melee 127 | . 11 . 3 2 . 9 . 2 1 . . 5 30 . 1 . 4 6 5 . . . . 7 1 7 8 6 16 3 Ram 3 | . . . . . . . . . . . . . . . . . . . . . . . . . . . . . . 3 Kick . | . . . . . . . . . . . . . . . . . . . . . . . . . . . . . . . Crush 27 | . 2 3 14 3 . . . . . . . . . . . . . . . . . . 4 . . . . . . 1 Escape Stasis 16 | . . . . . . 13 . . . . . . . . . . . . . . . . . . . . . . . 3 Rewire 234 | . . . . . 20 . 10 . . . . . . . . . . . 89 . . . . . . . 115 . . . Trap . | . . . . . . . . . . . . . . . . . . . . . . . . . . . . . . . Miscellaneous 8 | . . . . 8 . . . . . . . . . . . . . . . . . . . . . . . . . . Route ------- -11/Scrapyard -10/Materials (discovered 5 exits: *Mat x3 / *Min x2) -10/Mines -9/Materials (discovered 5 exits: [*Mat x3] / *Min / *Sto) -9/Storage (discovered 2 exits: [*Mat] / *Rec) -9/Recycling -7/Factory (discovered 2 exits: *Fac / [*Low]) -7/Lower Caves -7/Lower Caves (discovered 2 exits: *Fac / *Zio) -7/Zion -6/Proximity Caves -6/Factory -6/Waste -6/Factory (discovered 4 exits: *Fac x3 / *Low) -6/Lower Caves -6/Lower Caves -6/Data Miner -5/Proximity Caves -5/Factory (discovered 8 exits: *Fac x4 / Upp x2 / *Ext x2) -5/Extension (discovered 3 exits: *Fac x2 / *Cet) -5/Cetus (discovered 3 exits: *Fac x2 / *Arc) -5/Archives (discovered 3 exits: *Fac / *Hub x2) -5/Hub_04(d) (discovered 3 exits: *Fac x3) -4/Factory (discovered 7 exits: Res x4 / *Upp x2 / Arm) -4/Upper Caves -4/Upper Caves (discovered 2 exits: *Res / *Zhi) -4/Zhirov -3/Proximity Caves -3/Research (discovered 3 exits: Res / *Tes x2) -3/Testing -2/Research History --------- Turn | Location | Event 24 | -11/Scrapyard | Discovered new exit (range 2) 97 | -11/Scrapyard | Entered Materials 315 | -10/Materials | Build established: Mutant 491 | -10/Materials | Discovered new exit (range 4) 792 | -10/Materials | Discovered new exit (range 7) 923 | -10/Materials | Discovered new exit (range 11) 1006 | -10/Materials | Discovered new exit (range 16) 1116 | -10/Materials | Core integrity fell below 50% 1407 | -10/Materials | Identified exit to Mines 1778 | -10/Materials | Discovered new exit (range 3) 1987 | -10/Materials | Repaired Lgt. Cannon 2018 | -10/Materials | Entered Mines 2018 | -10/Mines | Accompanied by 1 ally 2047 | -10/Mines | Met a Derelict bent on vengeance 2107 | -10/Mines | Discovered new exit (range 10) 2124 | -10/Mines | Entered Materials 2124 | -9/Materials | Accompanied by 1 ally 2124 | -9/Materials | Evolved 2 slots: Propulsion x1, Utility x1 2765 | -9/Materials | Discovered new exit (range 12) 3393 | -9/Materials | Discovered new exit (range 8) 4113 | -9/Materials | Build established: Scavenger-Mutant 4688 | -9/Materials | Identified exit to Mines 4688 | -9/Materials | Identified exit to Storage 5113 | -9/Materials | Discovered new exit (range 8) 5439 | -9/Materials | Build established: Mutant 5512 | -9/Materials | Discovered new exit (range 15) 5966 | -9/Materials | Discovered new exit (range 10) 6524 | -9/Materials | First assault squad dispatched 6822 | -9/Materials | Entered Storage 7260 | -9/Storage | Discovered new exit (range 16) 7463 | -9/Storage | Destroyed 8 combat bots 7697 | -9/Storage | Found Prototype Processor 7697 | -9/Storage | Identified Exp. Targeting Computer 7782 | -9/Storage | Used back door to open Recycling access 7782 | -9/Storage | Discovered new exit (range 5) 7789 | -9/Storage | Entered Recycling 7793 | -9/Recycling | Core integrity fell below 50% 8243 | -9/Recycling | Discovered new exit (range 16) 9601 | -9/Recycling | Found Scrap Engine 10181 | -9/Recycling | Build established: Construct 11054 | -9/Recycling | Entered Factory 11054 | -7/Factory | Evolved 4 slots: Propulsion x1, Utility x2, Weapon x1 11064 | -7/Factory | Identified exit to DSF 11279 | -7/Factory | Discovered new exit (range 13) 11454 | -7/Factory | Search patrols dispatched 11562 | -7/Factory | Discovered new exit (range 16) 11599 | -7/Factory | Identified exit to Factory 12214 | -7/Factory | Entered Lower Caves 12311 | -7/Lower Caves | Encountered a Warlord checkpoint 12315 | -7/Lower Caves | Identified exit to Lower Caves 12449 | -7/Lower Caves | Spotted B-75 Beast 12570 | -7/Lower Caves | Destroyed B-75 Beast 12720 | -7/Lower Caves | Attracted the attention of an 0b10 outpost 13012 | -7/Lower Caves | Entered another Lower Caves area 13012 | -7/Lower Caves | Accompanied by 1 ally 13016 | -7/Lower Caves | Encountered a Warlord checkpoint 13037 | -7/Lower Caves | Discovered exit to Factory (range 15) 13171 | -7/Lower Caves | Spotted B-75 Beast 13217 | -7/Lower Caves | Allies destroyed B-75 Beast 13288 | -7/Lower Caves | Discovered new exit (range 5) 13364 | -7/Lower Caves | Entered Zion 13364 | -7/Zion | Accompanied by 1 ally 13432 | -7/Zion | System corruption cleaned by Quarantine Array 13468 | -7/Zion | Discovered new exit (range 14) 13538 | -7/Zion | Given the Hacking Drone Bay 13541 | -7/Zion | Found Prototype Device 13751 | -7/Zion | Gained Derelict followers 13809 | -7/Zion | Found CR-A16's Pointy Stick 13871 | -7/Zion | Gained Derelict followers 13970 | -7/Zion | Received a visual enhancement algorithm 14075 | -7/Zion | Learned Factory emergency access door positions 14089 | -7/Zion | Found Prototype Launcher 14089 | -7/Zion | Identified Rocket Array 14144 | -7/Zion | System corruption cleaned by Quarantine Array 14289 | -7/Zion | Found Prototype Processor 14289 | -7/Zion | Identified Exp. Terrain Scan Processor 14448 | -7/Zion | Identified exit to Proximity Caves 14466 | -7/Zion | Entered Proximity Caves 14466 | -6/Proximity Caves | Accompanied by 5 allies 14505 | -6/Proximity Caves | Lost 3 allies 14545 | -6/Proximity Caves | Spotter reported a threat 14598 | -6/Proximity Caves | Spotter reported a threat 14655 | -6/Proximity Caves | Spotter reported a threat 14757 | -6/Proximity Caves | Discovered exit to Factory (range 13) 14762 | -6/Proximity Caves | Learned 4 Factory zone layouts 14826 | -6/Proximity Caves | Entered Factory 14826 | -6/Factory | Evolved 2 slots: Power x1, Utility x1 14827 | -6/Factory | Identified exit to Lower Caves 14911 | -6/Factory | Sucked down chute 14911 | -6/Factory | Entered Waste 14923 | -6/Waste | Spotted C-40 Crusher 14928 | -6/Waste | Destroyed C-40 Crusher 14951 | -6/Waste | Spotted C-40 Crusher 14973 | -6/Waste | Spotted C-40 Crusher 14997 | -6/Waste | Warlord forces began an assault 15042 | -6/Waste | Spotted C-40 Crusher 15052 | -6/Waste | Allies destroyed C-40 Crusher 15052 | -6/Waste | Spotted C-40 Crusher 15056 | -6/Waste | Allies destroyed C-40 Crusher 15057 | -6/Waste | Spotted C-40 Crusher 15060 | -6/Waste | Destroyed C-40 Crusher 15068 | -6/Waste | Allies destroyed C-40 Crusher 15090 | -6/Waste | Allies destroyed C-40 Crusher 15094 | -6/Waste | Lost 7 allies 15268 | -6/Waste | Discovered new exit (range 15) 15434 | -6/Waste | Identified exit to Factory 15494 | -6/Waste | Murdered 3 allies 15525 | -6/Waste | Entered Factory 15525 | -6/Factory | Accompanied by 9 allies 15718 | -6/Factory | Identified Hacking Drone Bay 15893 | -6/Factory | Lost 3 allies 16343 | -6/Factory | Discovered new exit (range 13) 16376 | -6/Factory | Identified exit to Factory 16472 | -6/Factory | P-60 Hacker assimilated allied MR-7FT(m) 16837 | -6/Factory | Discovered exit to Factory (range 13) 17291 | -6/Factory | Garrison activated, responded to threat 17428 | -6/Factory | Garrison activated, responded to threat 17974 | -6/Factory | Discovered exit to Factory (range 14) 18064 | -6/Factory | Discovered exit to Lower Caves (range 4) 18117 | -6/Factory | Garrison activated, responded to threat 18806 | -6/Factory | Entered Lower Caves 18851 | -6/Lower Caves | Attracted the attention of an 0b10 checkpoint 19219 | -6/Lower Caves | Encountered a Warlord checkpoint 19222 | -6/Lower Caves | Discovered new exit (range 8) 19235 | -6/Lower Caves | Identified exit to Lower Caves 19448 | -6/Lower Caves | Entered another Lower Caves area 19624 | -6/Lower Caves | Learned 4 Factory zone layouts 19776 | -6/Lower Caves | Attracted the attention of an 0b10 checkpoint 19848 | -6/Lower Caves | Destroyed 7 combat bots 19983 | -6/Lower Caves | Discovered new exit (range 11) 19999 | -6/Lower Caves | Identified exit to Data Miner 20598 | -6/Lower Caves | Entered Data Miner 20598 | -6/Data Miner | Discovered new exit (range 6) 20629 | -6/Data Miner | Met Data Miner 20659 | -6/Data Miner | Learned location of Section 7 (-2) 20659 | -6/Data Miner | Acquired the access code to Warlord's prototype stash 20698 | -6/Data Miner | Received God Mode back door access code from Data Miner 20733 | -6/Data Miner | Identified exit to Proximity Caves 20734 | -6/Data Miner | Entered Proximity Caves 20923 | -5/Proximity Caves | Spotted B-75 Beast 20947 | -5/Proximity Caves | Destroyed B-75 Beast 21097 | -5/Proximity Caves | Learned Factory trap positions 21288 | -5/Proximity Caves | Discovered exit to Factory (range 7) 21300 | -5/Proximity Caves | Entered Factory 21300 | -5/Factory | Evolved 2 slots: Propulsion x1, Utility x1 21301 | -5/Factory | Identified exit to Extension 21303 | -5/Factory | Loaded intel: 109 trap records 21744 | -5/Factory | Identified exit to Upper Caves 21748 | -5/Factory | Identified exit to Factory 21928 | -5/Factory | Fabricated Particle Reactor (x2) 22431 | -5/Factory | Entered Extension 22488 | -5/Extension | Rescued A7 22799 | -5/Extension | Identified exit to Cetus 22811 | -5/Extension | Energy Cycler disabled 22812 | -5/Extension | Rescued a captive Derelict 22813 | -5/Extension | Rescued a captive Derelict 22813 | -5/Extension | Rescued a captive Derelict 22815 | -5/Extension | Rescued a captive Derelict 22821 | -5/Extension | Rescued a captive Derelict 22822 | -5/Extension | Rescued a captive Derelict 22932 | -5/Extension | Lost 4 allies 23656 | -5/Extension | Disrupted transfer network 23771 | -5/Extension | Spotted B-75 Beast 23794 | -5/Extension | Destroyed B-75 Beast 23810 | -5/Extension | Spotted B-75 Beast 23823 | -5/Extension | Allies destroyed B-75 Beast 23931 | -5/Extension | First assault squad dispatched 24246 | -5/Extension | Entered Cetus 24246 | -5/Cetus | Accompanied by 1 ally (A7) 24251 | -5/Cetus | Acquired a Cetus Manufacturing Module code from A7 24266 | -5/Cetus | Spotted Cetus Guard 24266 | -5/Cetus | Spotted Cetus Guard 24269 | -5/Cetus | Spotted Cetus Guard 24270 | -5/Cetus | Spotted Cetus Guard 24274 | -5/Cetus | Destroyed Cetus Guard 24275 | -5/Cetus | Allies destroyed Cetus Guard 24284 | -5/Cetus | Allies destroyed Cetus Guard 24286 | -5/Cetus | Destroyed Cetus Guard 24449 | -5/Cetus | Started Cetus Manufacturing Module 24461 | -5/Cetus | Escorted A7 to Cetus Mainframe 24474 | -5/Cetus | Manufactured an Enhanced Grunt 24499 | -5/Cetus | Manufactured an Enhanced Grunt 24524 | -5/Cetus | Manufactured an Enhanced Grunt 24549 | -5/Cetus | Manufactured an Enhanced Grunt 24552 | -5/Cetus | Discovered new exit (range 15) 24574 | -5/Cetus | Manufactured an Enhanced Grunt 24574 | -5/Cetus | Identified exit to Archives 24608 | -5/Cetus | Spotted Cetus Guard 24608 | -5/Cetus | Spotted Cetus Guard 24614 | -5/Cetus | Allies destroyed Cetus Guard 24614 | -5/Cetus | Spotted Cetus Guard 24615 | -5/Cetus | Spotted Cetus Guard 24618 | -5/Cetus | Allies destroyed Cetus Guard 24621 | -5/Cetus | Allies destroyed Cetus Guard 24623 | -5/Cetus | Allies destroyed Cetus Guard 24627 | -5/Cetus | Discovered exit to Factory (range 16) 24637 | -5/Cetus | Met Revision 17 24722 | -5/Cetus | Found Prototype Device 24722 | -5/Cetus | Identified Exp. Thermal Shield 24841 | -5/Cetus | Build established: Commander-Construct 25002 | -5/Cetus | Discovered exit to Factory (range 16) 25182 | -5/Cetus | Entered Archives 25182 | -5/Archives | Accompanied by 5 allies (A7) 25187 | -5/Archives | Received a hacking code to weaken MAIN.C 25249 | -5/Archives | Unable to access archive contents 25266 | -5/Archives | Unable to access archive contents 25284 | -5/Archives | Unable to access archive contents 25290 | -5/Archives | Discovered new exit (range 15) 25315 | -5/Archives | Identified exit to Hub_04(d) 25343 | -5/Archives | Discovered exit to Factory (range 15) 25395 | -5/Archives | Discovered exit to Hub_04(d) (range 16) 25540 | -5/Archives | Entered Hub_04(d) 25540 | -5/Hub_04(d) | Accompanied by 4 allies 25610 | -5/Hub_04(d) | Discovered exit to Factory (range 15) 25653 | -5/Hub_04(d) | Garrison activated, responded to threat 25659 | -5/Hub_04(d) | Discovered exit to Factory (range 15) 25875 | -5/Hub_04(d) | Discovered exit to Factory (range 4) 25888 | -5/Hub_04(d) | Network Hub disabled 25931 | -5/Hub_04(d) | Destroyed 8 combat bots 25936 | -5/Hub_04(d) | Entered Factory 25936 | -4/Factory | Accompanied by 2 allies 25936 | -4/Factory | Evolved 2 slots: Utility x2 26174 | -4/Factory | Build established: Construct 26175 | -4/Factory | Identified exit to Research 26175 | -4/Factory | Identified exit to Upper Caves 26175 | -4/Factory | Identified exit to Armory 26266 | -4/Factory | Fabricated Enh. Nova Cannon (x1) 26436 | -4/Factory | First assault squad dispatched 26748 | -4/Factory | Entered Upper Caves 26749 | -4/Upper Caves | Spotted B-86 Titan 26947 | -4/Upper Caves | Encountered a Warlord checkpoint 26961 | -4/Upper Caves | Revealed the true nature of CR-A16's Pointy Stick 26964 | -4/Upper Caves | Destroyed B-86 Titan 27487 | -4/Upper Caves | Learned Research stockpile data 27629 | -4/Upper Caves | Discovered new exit (range 6) 27646 | -4/Upper Caves | Identified exit to Upper Caves 27647 | -4/Upper Caves | Entered another Upper Caves area 27710 | -4/Upper Caves | Discovered exit to Research (range 5) 28030 | -4/Upper Caves | Attacked by a faux Warlord 28267 | -4/Upper Caves | Discovered new exit (range 14) 28314 | -4/Upper Caves | Identified exit to Zhirov 28318 | -4/Upper Caves | Learned 12 Research zone layouts 28322 | -4/Upper Caves | Entered Zhirov 28322 | -4/Zhirov | Discovered new exit (range 3) 28337 | -4/Zhirov | Met Zhirov 28359 | -4/Zhirov | Found Alien Artifact 28372 | -4/Zhirov | Found Alien Artifact 28372 | -4/Zhirov | Identified Integrated Reactor 28372 | -4/Zhirov | Installed Integrated Reactor, increased core energy generation (+10) 28471 | -4/Zhirov | Learned location of Quarantine (-2) 28471 | -4/Zhirov | Learned location of Testing (-3) 28471 | -4/Zhirov | Learned location of Command (-1) 28476 | -4/Zhirov | Zhirov requested help retrieving the SGEMP Prototype 28496 | -4/Zhirov | Identified exit to Proximity Caves 28497 | -4/Zhirov | Entered Proximity Caves 28499 | -3/Proximity Caves | Spotter reported a threat 28500 | -3/Proximity Caves | Spotter reported a threat 28520 | -3/Proximity Caves | Attracted the attention of an 0b10 checkpoint 28553 | -3/Proximity Caves | Spotter reported a threat 28698 | -3/Proximity Caves | Snuck into a huge 0b10 base via the rear entrance 28773 | -3/Proximity Caves | Spotter reported a threat 28980 | -3/Proximity Caves | Discovered exit to Research (range 20) 29200 | -3/Proximity Caves | Entered Research 29200 | -3/Research | Accompanied by 9 allies 29200 | -3/Research | Evolved 2 slots: Power x1, Utility x1 29201 | -3/Research | Identified exit to Research 29201 | -3/Research | Identified exit to Testing 29356 | -3/Research | Spotted B-86 Titan 29361 | -3/Research | Destroyed B-86 Titan 29365 | -3/Research | Garrison activated, responded to threat 29366 | -3/Research | Build established: Commander-Construct 29400 | -3/Research | Revision forces began assault on 0b10 29517 | -3/Research | Met up with Revision 17++ 29677 | -3/Research | Discovered exit to Testing (range 8) 29800 | -3/Research | Spotted B-86 Titan 29815 | -3/Research | Destroyed B-86 Titan 29821 | -3/Research | Found Unknown Protection 29821 | -3/Research | Identified Hvy. Reflective Plating 29884 | -3/Research | High security lockdown imminent 29900 | -3/Research | Research terminal network offline 29919 | -3/Research | Entered Testing 29919 | -3/Testing | Accompanied by 1 ally 29987 | -3/Testing | Found Prototype Protection 29987 | -3/Testing | Identified Hvy. Regenerative Plating 29990 | -3/Testing | Found Hvy. Regenerative Plating 30235 | -3/Testing | Discovered exit to Research (range 4) 30320 | -3/Testing | Identified Transdimensional Reconstructor 30416 | -3/Testing | Build established: Construct 30419 | -3/Testing | First assault squad dispatched 30574 | -3/Testing | Found Prototype Energy Gun 30574 | -3/Testing | Identified Hyp. EM Gauss Rifle 30680 | -3/Testing | Found Prototype Device 30680 | -3/Testing | Identified Exp. ECM Suite 30695 | -3/Testing | Found Exp. Targeting Computer 30725 | -3/Testing | Found Prototype Hackware 30869 | -3/Testing | Found Prototype Ballistic Gun 30869 | -3/Testing | Identified Hyp. Multirail 30956 | -3/Testing | High security lockdown imminent 30974 | -3/Testing | Scanned by Researcher 31011 | -3/Testing | Destroyed 11 combat bots 31036 | -3/Testing | High security lockdown engaged 31076 | -3/Testing | Spotted Executioner 31140 | -3/Testing | Entered Research 31140 | -2/Research | Evolved 2 slots: Utility x2 31360 | -2/Research | Build established: Infiltrator-Construct 31390 | -2/Research | First assault squad dispatched 31653 | -2/Research | High security lockdown imminent 31687 | -2/Research | Destroyed 14 combat bots 31733 | -2/Research | High security lockdown engaged 31739 | -2/Research | Build established: Construct 31753 | -2/Research | Found Prototype Device 31753 | -2/Research | Identified Adv. Kinecellerator 31861 | -2/Research | Destroyed 10 combat bots 31941 | -2/Research | Spotted Striker 31947 | -2/Research | Destroyed Striker 31991 | -2/Research | Destroyed 10 combat bots 32099 | -2/Research | Spotted Executioner 32105 | -2/Research | System corruption reached 10% 32105 | -2/Research | Spotted Investigator 32117 | -2/Research | Destroyed Investigator 32135 | -2/Research | Spotted Executioner 32150 | -2/Research | Spotted Executioner 32150 | -2/Research | Spotted Striker 32155 | -2/Research | Released all parts (13) 32158 | -2/Research | Core integrity fell below 50% 32167 | -2/Research | Destroyed 15 combat bots 32171 | -2/Research | Core integrity fell below 20% 32171 | -2/Research | Spotted Executioner 32174 | -2/Research | Destroyed by H-88 Terminator with KE Penetrator Last Messages --------------- 32171_ P-80 Master unfolds itself. 32171_ E-15 Imp unfolds itself. 32171_ Slug penetrates Wall. 32171_ Slammed into E-15 Imp. 32172_ System corrupted: Component data lost. 32172_ H-88 Terminator stasis bubble strength at 16. 32172_ Slammed into E-15 Imp. 32172_ Destabilizing: System corrupted (+2). 32173_ H-88 Terminator stasis bubble bursts. 32173_ Knocked back. 32173_ E-15 Imp system corrupted by crushing effect. 32174_ Acquired Imp. Ion Engine. 32174_ Penetrated by Slug. 32174_ Slug penetrates Wall. [Achievement: 40k Club] [Achievement: 50k Club] [Achievement: I Think I Know What's Going On] [Achievement: Overachiever] Map ----- +----------------------------------------------------+ | ?????????????????????????????????????????????????? | | ?????????????????????????????????????????????????? | | ?????????????????????????????????????????????????? | | ?????????????????????????????????????????????????? | | ?????????????????????????????????????????????????? | | ?????????????????????????????????????????????????? | | ?????????????????????????????????????????????????? | | ?????????????????????????????????????????????????? | | ?????????????????????????????????????????????????? | | ?????????????????????????????????????????????????? | | ?????????????????????????????????????????????????? | | ?????????????????????????????????????????????????? | | ?????????????????????????????????????????????????? | | ?????????????????????????????????????????????????? | | ?????????????????????????????????????????????????? | | ???????????????????????###+#?????????????????????? | | ???????????????????????# ??????????????????????? | | ???????????????????????# ??#?????????????????? | | ???????????????????????# #?????????????????? | | ???????????????????????# #?????????????????? | | ???????????????????????# """ #?????????????????? | | ???????????????????????# %""" #?????????????????? | | ???????????????????????# %""" #?????????????????? | | ???????????????????????# #?????????????????? | | ???????????????????????# E #?????????????????? | | ???????????????????????# @p #?????????????????? | | ???????????????????????#h=e #?????????????????? | | ???????????????????????##;######?????????????????? | | ?????????????????????[??#[#??????????????????????? | | ????????????????????? ?#%####???????????????????? | | ???????????????????? ##K# #???????????????????? | | ???????????????????? #%*#!#####????????????????? | | ?????????????????????#"#EE[ # ##???????????????? | | ?????????????????????# =[b % ####????????????? | | ?????????????????????# g% ###??????????? | | ???????????????????### lh/ #??????????? | | ???????????????????# ilp=% ##??????????? | | ???????????????????# = [=%% ############???? | | ???????????????????# E=! = | | ???????????????????# *%[=%=% % | | ???????????????????# " !*%!%% | | ???????????????????# =!*=%! #####"######### | | ???????????##??????# !!=!! ] " ????? | | ???????????# #???### ![!!!=# # ???? | | ????????????# ####"####!=%=!! # " """"""" #?? | | ?????????????#" *%[/! # ] " """"?""= "# | | ??????????????# [! # # """""""!%= | | ??????????????# " # =%! | | ??????????????# * # #? [ # | | ?????????????## * = # * ###### # | +----------------------------------------------------+ Best States ------------- Heat Dissipation 111 Coolant Potential 100 Energy Generation 71 Energy Capacity 1800 Matter Stores 459 Matter Capacity 600 Sight Range 20 Robot Scan Range 18 Terrain Scan Density 1010 ECM Strength 3 Jamming Range 14 Armor Coverage 1200 Resistance: KI 30 Resistance: TH 15 Propulsion Shielding 33 Weapon Cycling 25 Evasion (%) 57 Targeting Accuracy 12 Core Analysis 6 Recoil Reduction 5 Energy Filtering 50 Particle Charging 25 Kinecelleration 50 Salvage Targeting 1 Offensive Hacking 14 Authchip Count 4 Trap Extractor Capacity 6 Item Schematics ----------------- Hcp. Storage Unit | -10/Materials | Hacked Hpw. Tractor Beam | -10/Materials | Hacked Hvy. Missile Launcher | -9/Recycling | Hacked Kinecellerator | -7/Zion | Archive Thermic Laser | -7/Zion | Archive Mak. Hammer | -7/Zion | Archive Plasma Flamer | -7/Zion | Archive Imp. Titanium Leg | -7/Zion | Archive Hyp. Gauss Rifle | -7/Zion | Archive Imp. Medium Armor Plating | -7/Zion | Archive Neutrino Core | -7/Zion | Archive Imp. Corruption Screen | -7/Zion | Archive Mak. System Shield | -7/Zion | Archive Hvy. Flak Cannon | -7/Zion | Archive Hvy. Plasma Cannon | -7/Zion | Archive Gauss Cannon | -7/Zion | Archive Dynamic Insulation System | -7/Zion | Archive 0b10 Decoder Chip [Looter] | -7/Zion | Archive Remote Datajack | -6/Factory | Scanalyzed Combat Drone Bay | -6/Data Miner | Free Lgt. Regenerative Plating | -6/Data Miner | Free Cld. Nuclear Pulse Thruster | -6/Data Miner | Free Exp. Heat Sink | -6/Data Miner | Free Ionic Axe | -6/Data Miner | Free Imp. Linear Gravjet | -6/Data Miner | Free Imp. Phase Shifter | -6/Data Miner | Free Hvy. Gauss Cannon | -6/Data Miner | Free Imp. Heavy Treads | -6/Data Miner | Free Assault Drone Bay | -4/Zhirov | Free Exp. Optical Array | -4/Zhirov | Free Imp. Arc Thrower | -4/Zhirov | Free Graviton Reactor | -3/Testing | Archive Stealth Drone Bay | -3/Testing | Archive Gravity Flail | -3/Testing | Archive Exp. Power Amplifier | -3/Testing | Archive Robot Schematics ------------------ A-02 Transporter | -9/Recycling | Hacked B-36 Bruiser | -9/Recycling | Hacked K-01 Serf | -7/Zion | Archive H-77 Assassin | -7/Zion | Archive G-47 Trooper | -7/Zion | Archive M-28 Smith | -7/Zion | Archive L-41 Fighter | -6/Data Miner | Free B-60 Warrior | -6/Data Miner | Free H-66 Slayer | -6/Data Miner | Free E-15 Imp | -6/Data Miner | Free Y-64 Sentinel | -6/Data Miner | Free Fabricated ------------ Particle Reactor | x2 | -5/Factory | Preloaded Enh. Nova Cannon | x1 | -4/Factory | Preloaded Alien Tech Used ----------------- Integrated Reactor Achievements -------------- 40k Club 50k Club Equal Opportunity Bot I Think I Know What's Going On Main Advantage Overachiever Preemptive Strike Project G-00 Revising The Future Revolutionary Research Challenges ------------ None Game ------ Seed NullThrusterMaul Manual? 0 Play Time 07:05:20 Cumulative 115.4 hours Start 2024.05.10 @ 02:02:21 End 2024.05.12 @ 23:05:51 Sessions 2 Manual Loads 0 Difficulty Rogue Special Mode None Game No. 43 Rogue 43 Adventurer 0 Explorer 0 Win Type - Total 4 Types 3/0/0/1/0/0/0/0/0 Lore% 50 Gallery% 65 Achievement% 52 Wizard Run 0 Options --------- Layout 1 ASCII 0 Keyboard 0 Movement Numpad Keybinds 0 Fullscreen 2 Font 24/Crisp Map View 50x35 Zoom Use 0% Tactical HUD 1 Map Filters NONE Filters NONE Steam 1 RUN: cea4edca-d688-43eb-9671-95b210feb8b6